fUSD/lending_fUSD_20240329
["ID","MTS","AMOUNT","RATE_DAILY","PERIOD"]
[320944751,1711720265617,-500.0,0.00050308,120]
[320944752,1711720265626,-500.0,0.00050308,120]
[320944753,1711720265635,-500.0,0.00050308,120]
[320944754,1711720265647,-556.12922692,0.00050308,120]
[320944755,1711720265657,-525.04838931,0.00050308,120]
[320944756,1711720265668,-500.0,0.00050308,120]
[320944757,1711720265678,-500.0,0.00050308,120]
[320944758,1711720265688,-423.21318638,0.00050308,120]
[320944759,1711720265698,-500.0,0.00050308,120]
[320944760,1711720265708,-500.0,0.00050308,120]
[320944761,1711720265718,-500.0,0.00050308,120]
[320944762,1711720265728,-500.0,0.00050308,120]
[320944763,1711720265738,-500.0,0.00050308,120]
[320944764,1711720265748,-511.16023857,0.00050308,120]
[320944765,1711720265758,-500.0,0.00050308,120]
[320944766,1711720265768,-317.16350981,0.00050308,120]
[320944767,1711720265778,-500.0,0.00050308,120]
[320944768,1711720265788,-500.0,0.00050308,120]
[320944769,1711720265798,-500.0,0.00050308,120]
[320944770,1711720265808,-500.0,0.00050308,120]
[320944771,1711720265818,-500.0,0.00050308,120]
[320944772,1711720265828,-500.0,0.00050308,120]
[320944773,1711720265838,-500.0,0.00050308,120]
[320944774,1711720265848,-532.95341411,0.00050308,120]
[320944775,1711720265858,-500.0,0.00050308,120]
[320944776,1711720265867,-590.81679913,0.00050308,120]
[320944777,1711720265878,-500.0,0.00050308,120]
[320944778,1711720265888,-567.95431743,0.00050308,120]
[320944779,1711720265899,-500.0,0.00050308,120]
[320944780,1711720265909,-500.0,0.00050308,120]
[320944781,1711720265919,-500.0,0.00050308,120]
[320944782,1711720265929,-500.0,0.00050308,120]
[320944783,1711720265938,-500.0,0.00050308,120]
[320944784,1711720265948,-500.0,0.00050308,120]
[320944785,1711720265958,-505.35626136,0.00050308,120]
[320944786,1711720265968,-500.0,0.00050308,120]
[320944787,1711720265978,-519.52515839,0.00050308,120]
[320944788,1711720265988,-500.0,0.00050308,120]
[320944789,1711720265998,-500.0,0.00050308,120]
[320944790,1711720266008,-500.0,0.00050308,120]
[320944791,1711720266019,-500.0,0.00050308,120]
[320944792,1711720266029,-500.0,0.00050308,120]
[320944793,1711720266038,-500.0,0.00050308,120]
[320944794,1711720266048,-500.0,0.00050308,120]
[320944795,1711720266058,-500.0,0.00050308,120]
[320944796,1711720266067,-506.08928422,0.00050308,120]
[320944797,1711720266077,-500.0,0.00050308,120]
[320944798,1711720266088,-500.0,0.00050308,120]
[320944799,1711720266201,-500.0,0.00050308,120]
[320944800,1711720266212,-500.0,0.00050308,120]
[320944801,1711720266222,-500.0,0.00050308,120]
[320944802,1711720266233,-500.0,0.00050308,120]
[320944803,1711720266244,-591.35850503,0.00050308,120]
[320944804,1711720266254,-509.85403746,0.00050308,120]
[320944805,1711720266265,-500.0,0.00050308,120]
[320944806,1711720266275,-500.0,0.00050308,120]
[320944807,1711720266286,-500.0,0.00050308,120]
[320944808,1711720266295,-500.0,0.00050308,120]
[320944809,1711720266305,-500.0,0.00050308,120]
[320944810,1711720266316,-500.0,0.00050308,120]
[320944811,1711720266325,-509.68489569,0.00050308,120]
[320944812,1711720266335,-500.0,0.00050308,120]
[320944813,1711720266345,-500.0,0.00050308,120]
[320944814,1711720266356,-500.0,0.00050308,120]
[320944815,1711720266366,-500.0,0.00050308,120]
[320944816,1711720266376,-500.0,0.00050308,120]
[320944817,1711720266386,-500.0,0.00050308,120]
[320944818,1711720266399,-500.0,0.00050308,120]
[320944819,1711720266409,-500.0,0.00050308,120]
[320944820,1711720266418,-314.43061173,0.00050308,120]
[320944821,1711720266430,-500.0,0.00050308,120]
[320944822,1711720266440,-500.0,0.00050308,120]
[320944823,1711720266450,-500.0,0.00050308,120]
[320944824,1711720266460,-500.0,0.00050308,120]
[320944825,1711720266470,-500.0,0.0005041,60]
[320944826,1711720266481,-311.0,0.0005041,60]
[320944827,1711720266491,-304.0,0.0005041,60]
[320944828,1711720266501,-300.0,0.0005041,60]
[320944829,1711720266510,-507.0,0.0005041,60]
[320944830,1711720266520,-500.0,0.0005041,120]
[320944831,1711720266529,-500.0,0.0005041,120]
[320944832,1711720266539,-500.0,0.0005041,120]
[320944833,1711720266549,-500.0,0.0005041,120]
[320944834,1711720266559,-500.0,0.0005041,120]
[320944835,1711720266569,-500.0,0.0005041,120]
[320944836,1711720266579,-500.0,0.0005041,120]
[320944837,1711720266589,-385.93416555,0.0005041,120]
[320944838,1711720266599,-500.0,0.0005041,120]
[320944839,1711720266610,-500.0,0.0005041,120]
[320944840,1711720266620,-500.0,0.0005041,120]
[320944841,1711720266630,-500.0,0.0005041,120]
[320944842,1711720266640,-500.0,0.0005041,120]
[320944843,1711720266652,-500.0,0.0005041,120]
[320944844,1711720266662,-500.0,0.0005041,120]
[320944845,1711720266672,-500.0,0.0005041,120]
[320944846,1711720266682,-500.0,0.0005041,120]
[320944847,1711720266692,-500.0,0.0005041,120]
[320944848,1711720266703,-500.0,0.0005041,120]
[320944849,1711720266714,-500.0,0.0005041,120]
[320944850,1711720266724,-500.0,0.0005041,120]
[320944851,1711720266734,-500.0,0.0005041,120]
[320944852,1711720266744,-500.0,0.0005041,120]
[320944853,1711720266754,-500.0,0.0005041,30]
[320944854,1711720266764,-500.0,0.0005041,120]
[320944855,1711720266774,-332.63297904,0.0005041,120]
[320944856,1711720266784,-353.23819791,0.0005041,120]
[320944857,1711720266795,-500.0,0.0005041,120]
[320944858,1711720266805,-500.0,0.0005041,120]
[320944859,1711720266815,-500.0,0.0005041,120]
[320944860,1711720266824,-500.0,0.0005041,120]
[320944861,1711720266834,-500.0,0.0005041,120]
[320944862,1711720266844,-500.0,0.0005041,120]
[320944863,1711720266855,-500.0,0.0005041,120]
[320944864,1711720266867,-500.0,0.0005041,120]
[320944865,1711720266876,-150.0,0.0005041,120]
[320944866,1711720266886,-500.0,0.0005041,120]
[320944867,1711720266900,-867.0,0.0005041,120]
[320944868,1711720266910,-500.0,0.0005041,120]
[320944869,1711720266927,-500.0,0.0005041,120]
[320944870,1711720266937,-500.0,0.0005041,120]
[320944871,1711720266947,-500.0,0.0005041,120]
[320944872,1711720266963,-500.0,0.0005041,120]
[320944873,1711720266973,-627.18,0.0005041,120]
[320944874,1711720266982,-500.0,0.0005041,120]
[320944875,1711720266992,-714.94,0.0005041,120]
[320944876,1711720267001,-500.0,0.0005041,120]
[320944877,1711720267012,-628.66601074,0.0005041,120]
[320944878,1711720267023,-538.01,0.0005041,120]
[320944879,1711720267036,-1007.7,0.0005041,120]
[320944880,1711720267049,-686.37,0.0005041,120]
[320944881,1711720267065,-500.0,0.0005041,120]
[320944882,1711720267075,-982.95,0.0005041,120]
[320944883,1711720267086,-500.0,0.0005041,120]
[320944884,1711720267096,-500.0,0.0005041,120]
[320944885,1711720267108,-500.0,0.0005041,120]
[320944886,1711720267118,-500.0,0.0005041,120]
[320944887,1711720267128,-500.0,0.0005041,120]
[320944888,1711720267138,-500.0,0.0005041,120]
[320944889,1711720267155,-559.63867988,0.0005041,120]
[320944890,1711720267164,-774.88,0.0005041,120]
[320944891,1711720267180,-500.0,0.0005041,120]
[320944892,1711720267197,-500.0,0.0005041,120]
[320944893,1711720267207,-500.0,0.0005041,120]
[320944894,1711720267218,-679.79,0.0005041,120]
[320944895,1711720267228,-500.0,0.0005041,120]
[320944896,1711720267239,-500.0,0.0005041,7]
[320944897,1711720267250,-500.0,0.0005041,120]
[320944898,1711720267260,-500.0,0.0005041,120]
[320944899,1711720267271,-500.0,0.0005041,120]
[320944900,1711720267281,-853.69,0.0005041,120]
[320944901,1711720267291,-500.0,0.0005041,120]
[320944902,1711720267301,-500.0,0.0005041,120]
[320944903,1711720267315,-896.8,0.0005041,120]
[320944904,1711720267325,-786.23,0.0005041,120]
[320944905,1711720267347,-522.53,0.0005041,120]
[320944906,1711720267357,-500.0,0.0005041,120]
[320944907,1711720267367,-500.0,0.0005041,120]
[320944908,1711720267378,-594.23,0.0005041,120]
[320944909,1711720267394,-9880.52,0.0005041,120]
[320944910,1711720267405,-1749.42,0.0005041,120]
[320944911,1711720267414,-500.0,0.0005041,120]
[320944912,1711720267423,-583.87693331,0.0005041,120]
[320944913,1711720267433,-500.0,0.0005041,120]
[320944914,1711720267443,-573.33,0.0005041,120]
[320944915,1711720267453,-500.0,0.0005041,120]
[320944916,1711720267462,-500.0,0.0005041,120]
[320944917,1711720267473,-512.31,0.0005041,120]
[320944918,1711720267482,-500.0,0.0005041,120]
[320944919,1711720267491,-500.0,0.0005041,120]
[320944920,1711720267501,-500.0,0.0005041,120]
[320944921,1711720267510,-500.0,0.0005041,120]
[320944922,1711720267519,-500.0,0.0005041,120]
[320944923,1711720267529,-410.05637912,0.0005041,120]
[320944924,1711720267539,-500.0,0.0005041,120]
[320944925,1711720267549,-545.68,0.0005041,120]
[320944926,1711720267559,-508.68621423,0.0005041,120]
[320944927,1711720267570,-500.0,0.0005041,120]
[320944928,1711720267580,-500.0,0.0005041,120]
[320944929,1711720267589,-355.49992599,0.0005041,120]
[320944930,1711720267599,-500.0,0.0005041,120]
[320944931,1711720267608,-500.0,0.0005041,80]
[320944932,1711720267618,-500.0,0.0005041,120]
[320944933,1711720267628,-500.0,0.0005041,120]
[320944934,1711720267638,-1990.61,0.0005041,120]
[320944935,1711720267649,-500.0,0.0005041,120]
[320944936,1711720267659,-500.0,0.0005041,120]
[320944937,1711720267669,-500.0,0.0005041,120]
[320944938,1711720267679,-1229.22,0.0005041,120]
[320944939,1711720267689,-817.16,0.0005041,120]
[320944940,1711720267698,-500.0,0.0005041,120]
[320944941,1711720267708,-500.0,0.0005041,120]
[320944942,1711720267718,-420.62,0.0005041,120]
[320944943,1711720267728,-553.19,0.0005041,120]
[320944944,1711720267737,-500.0,0.0005041,120]
[320944945,1711720267747,-500.0,0.0005041,120]
[320944946,1711720267849,-770.3,0.0005041,120]
[320944947,1711720267859,-4469.38,0.0005041,120]
[320944948,1711720267868,-500.0,0.0005041,120]
[320944949,1711720267877,-679.26,0.0005041,120]
[320944950,1711720267888,-500.0,0.0005041,120]
[320944951,1711720267899,-713.39,0.0005041,120]
[320944952,1711720267909,-885.4,0.0005041,120]
[320944953,1711720267918,-393.91448945,0.0005041,120]
[320944954,1711720267928,-500.0,0.0005041,120]
[320944955,1711720267939,-500.0,0.0005041,120]
[320944956,1711720267949,-1238.51,0.0005041,120]
[320944957,1711720267960,-500.0,0.0005041,120]
[320944958,1711720267970,-1635.01,0.0005041,120]
[320944959,1711720267981,-576.18,0.0005041,120]
[320944960,1711720267991,-500.0,0.0005041,60]
[320944961,1711720268001,-855.16,0.0005041,120]
[320944962,1711720268011,-500.0,0.0005041,120]
[320944963,1711720268021,-531.08,0.0005041,120]
[320944964,1711720268031,-500.0,0.0005041,120]
[320944965,1711720268040,-500.0,0.0005041,120]
[320944966,1711720268050,-500.0,0.0005041,120]
[320944967,1711720268060,-500.0,0.0005041,120]
[320944968,1711720268069,-534.13,0.0005041,120]
[320944969,1711720268079,-500.0,0.0005041,120]
[320944970,1711720268088,-500.0,0.0005041,120]
[320944971,1711720268098,-6532.1,0.0005041,120]
[320944972,1711720268108,-523.64,0.0005041,120]
[320944973,1711720268118,-560.66,0.0005041,120]
[320944974,1711720268128,-502.42,0.0005041,120]
[320944975,1711720268138,-358.83974314,0.0005041,120]
[320944976,1711720268148,-723.57,0.0005041,120]
[320944977,1711720268159,-1682.83,0.0005041,120]
[320944978,1711720268169,-230.37487242,0.0005041,120]
[320944979,1711720268179,-638.67,0.0005041,120]
[320944980,1711720268188,-503.68,0.0005041,120]
[320944981,1711720268199,-1618.73,0.0005041,120]
[320944982,1711720268209,-3551.69,0.0005041,120]
[320944983,1711720268219,-500.0,0.0005041,120]
[320944984,1711720268229,-500.0,0.0005041,120]
[320944985,1711720268239,-500.0,0.0005041,120]
[320944986,1711720268248,-500.0,0.0005041,120]
[320944987,1711720268258,-1902.79,0.0005041,120]
[320944988,1711720268268,-523.06,0.0005041,120]
[320944989,1711720268278,-500.0,0.0005041,120]
[320944990,1711720268288,-500.0,0.0005041,120]
[320944991,1711720268297,-783.41,0.0005041,120]
[320944992,1711720268307,-1110.8,0.0005041,120]
[320944993,1711720268316,-500.0,0.0005041,120]
[320944994,1711720268326,-500.0,0.0005041,120]
[320944995,1711720268336,-500.0,0.0005041,120]
[320944996,1711720268347,-516.74,0.0005041,120]
[320944997,1711720268375,-500.0,0.0005041,120]
[320944998,1711720268386,-728.83,0.0005041,21]
[320944999,1711720268397,-500.0,0.0005041,120]
[320945000,1711720268408,-1108.05,0.0005041,120]
[320945001,1711720268418,-500.0,0.0005041,120]
[320945002,1711720268427,-500.0,0.0005041,120]
[320945003,1711720268436,-988.84,0.0005041,120]
[320945004,1711720268446,-500.0,0.0005041,120]
[320945005,1711720268456,-627.93,0.0005041,120]
[320945006,1711720268467,-500.0,0.0005041,120]
[320945007,1711720268476,-631.86510443,0.0005041,120]
[320945008,1711720268486,-500.0,0.0005041,120]
[320945009,1711720268496,-500.0,0.0005041,120]
[320945010,1711720268505,-743.49,0.0005041,120]
[320945011,1711720268515,-500.0,0.0005041,2]
[320945012,1711720268524,-500.0,0.0005041,120]
[320945013,1711720268533,-1845.14,0.0005041,120]
[320945014,1711720268548,-826.94,0.0005041,120]
[320945015,1711720268566,-838.3,0.0005041,120]
[320945016,1711720268580,-679.1,0.0005041,120]
[320945017,1711720268599,-500.0,0.0005041,120]
[320945018,1711720268617,-2055.89,0.0005041,120]
[320945019,1711720268633,-418.12046028,0.0005041,120]
[320945020,1711720268650,-500.0,0.0005041,120]
[320945021,1711720268668,-617.83,0.0005041,120]
[320945022,1711720268686,-1240.17,0.0005041,120]
[320945023,1711720268703,-500.0,0.0005041,120]
[320945024,1711720268720,-500.0,0.0005041,120]
[320945025,1711720268743,-500.0,0.0005041,120]
[320945026,1711720268764,-500.0,0.0005041,120]
[320945027,1711720268779,-663.18,0.0005041,120]
[320945028,1711720268802,-500.0,0.0005041,120]
[320945029,1711720268820,-500.0,0.0005041,120]
[320945030,1711720268835,-500.0,0.0005041,120]
[320945031,1711720268851,-1451.79,0.0005041,120]
[320945032,1711720268866,-500.0,0.0005041,120]
[320945033,1711720268880,-500.0,0.0005041,120]
[320945034,1711720268910,-500.0,0.0005041,120]
[320945035,1711720268926,-440.70977667,0.0005041,120]
[320945036,1711720268942,-438.22850614,0.0005041,120]
[320945037,1711720268964,-500.0,0.0005041,120]
[320945038,1711720268981,-500.0,0.0005041,2]
[320945039,1711720268997,-501.57677638,0.0005041,120]
[320945040,1711720269013,-500.0,0.0005041,120]
[320945041,1711720269027,-500.0,0.0005041,120]
[320945042,1711720269042,-500.0,0.0005041,120]
[320945043,1711720269058,-1038.95,0.0005041,120]
[320945044,1711720269073,-697.14,0.0005041,120]
[320945045,1711720269088,-230.4,0.00050411,120]
[320945046,1711720269103,-500.0,0.00050573,120]
[320945047,1711720269117,-500.0,0.00050573,120]
[320945048,1711720269132,-500.0,0.00050573,120]
[320945049,1711720269148,-534.93437899,0.00050573,120]
[320945050,1711720269163,-500.0,0.00050573,120]
[320945051,1711720269178,-500.0,0.00050573,120]
[320945052,1711720269192,-500.0,0.00050573,120]
[320945053,1711720269208,-500.0,0.00050573,120]
[320945054,1711720269223,-500.0,0.00050573,120]
[320945055,1711720269238,-500.0,0.00050573,120]
[320945056,1711720269252,-500.0,0.00050573,120]
[320945057,1711720269267,-500.0,0.00050573,120]
[320945058,1711720269281,-500.0,0.00050573,120]
[320945059,1711720269295,-514.70642779,0.00050573,120]
[320945060,1711720269316,-523.45559541,0.00050573,120]
[320945061,1711720269331,-500.0,0.00050573,120]
[320945062,1711720269354,-563.1592978,0.00050573,120]
[320945063,1711720269368,-500.0,0.00050573,120]
[320945064,1711720269385,-500.0,0.00050573,120]
[320945065,1711720269404,-500.0,0.00050573,120]
[320945066,1711720269421,-400.3517179,0.00050573,120]
[320945067,1711720269437,-500.0,0.00050573,120]
[320945068,1711720269452,-1137.41,0.00050573,120]
[320945069,1711720269467,-500.0,0.00050573,120]
[320945070,1711720269484,-500.0,0.00050573,120]
[320945071,1711720269499,-500.0,0.00050573,120]
[320945072,1711720269515,-236.99470187,0.00050573,120]
[320945073,1711720269530,-500.0,0.00050573,120]
[320945074,1711720269545,-500.0,0.00050573,120]
[320945075,1711720269560,-500.0,0.00050573,120]
[320945076,1711720269575,-500.0,0.00050573,120]
[320945077,1711720269590,-500.0,0.00050573,120]
[320945078,1711720269604,-500.0,0.00050573,120]
[320945079,1711720269619,-348.66011011,0.00050573,120]
[320945080,1711720269634,-500.0,0.00050573,120]
[320945081,1711720269774,-500.0,0.00050573,120]
[320945082,1711720269789,-500.0,0.00050573,120]
[320945083,1711720269799,-500.0,0.00050573,120]
[320945084,1711720269808,-500.0,0.00050573,120]
[320945085,1711720269818,-500.0,0.00050573,120]
[320945086,1711720269827,-500.0,0.00050573,120]
[320945087,1711720269837,-500.0,0.00050573,120]
[320945088,1711720269847,-500.0,0.00050573,120]
[320945089,1711720269857,-500.0,0.00050573,120]
[320945090,1711720269866,-500.0,0.00050573,120]
[320945091,1711720269875,-500.0,0.00050573,120]
[320945092,1711720269884,-500.0,0.00050573,120]
[320945093,1711720269894,-500.0,0.00050573,120]
[320945094,1711720269905,-520.10760787,0.00050573,120]
[320945095,1711720269915,-500.0,0.00050573,120]
[320945096,1711720269925,-500.0,0.00050573,120]
[320945097,1711720269934,-500.0,0.00050573,120]
[320945098,1711720269944,-500.0,0.00050573,120]
[320945099,1711720269954,-500.0,0.00050573,120]
[320945100,1711720269964,-500.0,0.00050573,120]
[320945101,1711720269974,-500.0,0.00050573,120]
[320945102,1711720269983,-500.0,0.00050573,120]
[320945103,1711720269994,-500.0,0.00050573,120]
[320945104,1711720270003,-500.0,0.00050573,120]
[320945105,1711720270013,-500.0,0.00050573,120]
[320945106,1711720270022,-500.0,0.00050573,120]
[320945107,1711720270032,-500.0,0.00050573,120]
[320945108,1711720270042,-500.0,0.00050573,120]
[320945109,1711720270051,-500.0,0.00050573,120]
[320945110,1711720270061,-500.0,0.00050573,120]
[320945111,1711720270071,-500.0,0.00050573,120]
[320945112,1711720270081,-500.0,0.00050573,120]
[320945113,1711720270092,-500.0,0.00050573,120]
[320945114,1711720270110,-500.0,0.00050573,120]
[320945115,1711720270120,-500.0,0.00050573,120]
[320945116,1711720270130,-500.0,0.00050573,120]
[320945117,1711720270140,-500.0,0.00050573,120]
[320945118,1711720270150,-500.0,0.00050573,120]
[320945119,1711720270161,-507.44401556,0.00050573,120]
[320945120,1711720270172,-500.0,0.00050573,120]
[320945121,1711720270181,-500.0,0.00050573,120]
[320945122,1711720270191,-521.90835015,0.00050573,120]
[320945123,1711720270203,-500.0,0.00050573,120]
[320945124,1711720270213,-500.0,0.00050573,120]
[320945125,1711720270224,-500.0,0.00050573,120]
[320945126,1711720270234,-500.0,0.00050573,120]
[320945127,1711720270244,-500.0,0.00050573,120]
[320945128,1711720270254,-500.0,0.00050573,120]
[320945129,1711720270264,-500.0,0.00050573,120]
[320945130,1711720270274,-500.0,0.00050573,120]
[320945131,1711720270284,-500.0,0.00050573,120]
[320945132,1711720270294,-500.0,0.00050573,120]
[320945133,1711720270304,-500.0,0.00050573,120]
[320945134,1711720270315,-500.0,0.00050573,120]
[320945135,1711720270324,-500.0,0.00050573,120]
[320945136,1711720270334,-500.0,0.00050573,120]
[320945137,1711720270344,-517.24129523,0.00050573,120]
[320945138,1711720270353,-500.0,0.00050573,120]
[320945139,1711720270363,-504.41466839,0.00050573,120]
[320945140,1711720270373,-500.0,0.00050573,120]
[320945141,1711720270387,-500.0,0.00050573,120]
[320945142,1711720270398,-517.92263424,0.00050573,120]
[320945143,1711720270410,-500.0,0.00050573,120]
[320945144,1711720270421,-500.0,0.00050573,120]
[320945145,1711720270431,-521.40817505,0.00050573,120]
[320945146,1711720270441,-500.0,0.00050573,120]
[320945147,1711720270450,-500.0,0.00050573,120]
[320945148,1711720270460,-500.0,0.00050573,120]
[320945149,1711720270473,-500.0,0.00050573,120]
[320945150,1711720270483,-518.30450822,0.00050573,120]
[320945151,1711720270493,-510.1177794,0.00050573,120]
[320945152,1711720270503,-500.0,0.00050573,120]
[320945153,1711720270512,-500.0,0.00050573,120]
[320945154,1711720270523,-500.0,0.00050573,120]
[320945155,1711720270532,-500.0,0.00050573,120]
[320945156,1711720270543,-522.09255471,0.00050573,120]
[320945157,1711720270552,-500.0,0.00050573,120]
[320945158,1711720270562,-524.53737118,0.00050573,120]
[320945159,1711720270572,-500.0,0.00050573,120]
[320945160,1711720270581,-500.0,0.00050573,120]
[320945161,1711720270591,-500.0,0.00050573,120]
[320945162,1711720270600,-525.70540398,0.00050573,120]
[320945163,1711720270611,-610.6149107,0.00050573,120]
[320945164,1711720270621,-536.98662852,0.00050573,120]
[320945165,1711720270631,-500.0,0.00050573,120]
[320945166,1711720270641,-500.0,0.00050573,120]
[320945167,1711720270651,-500.0,0.00050573,120]
[320945168,1711720270661,-500.0,0.00050573,120]
[320945169,1711720270670,-500.0,0.00050573,120]
[320945170,1711720270680,-500.0,0.00050573,120]
[320945171,1711720270689,-500.0,0.00050573,120]
[320945172,1711720270698,-502.73296706,0.00050573,120]
[320945173,1711720270707,-500.0,0.00050573,120]
[320945174,1711720270717,-500.0,0.00050573,120]
[320945175,1711720270727,-500.0,0.00050573,120]
[320945176,1711720270736,-520.34220018,0.00050573,120]
[320945177,1711720270745,-525.35679904,0.00050573,120]
[320945178,1711720270755,-500.0,0.00050573,2]
[320945179,1711720270764,-500.0,0.00050573,120]
[320945180,1711720270773,-500.0,0.00050573,120]
[320945181,1711720270783,-500.0,0.00050573,120]
[320945182,1711720270792,-525.25053898,0.00050573,120]
[320945183,1711720270801,-529.27550242,0.00050573,120]
[320945184,1711720270811,-500.0,0.00050573,120]
[320945185,1711720270821,-505.05309744,0.00050573,120]
[320945186,1711720270831,-500.0,0.00050573,120]
[320945187,1711720270840,-500.0,0.00050573,120]
[320945188,1711720270849,-500.0,0.00050573,120]
[320945189,1711720270859,-500.0,0.00050573,120]
[320945190,1711720270868,-500.0,0.00050573,120]
[320945191,1711720270877,-500.0,0.00050573,120]
[320945192,1711720270886,-500.0,0.00050573,120]
[320945193,1711720270895,-500.0,0.00050573,120]
[320945194,1711720270905,-500.0,0.00050573,120]
[320945195,1711720270915,-500.0,0.00050573,120]
[320945196,1711720270924,-500.0,0.00050573,120]
[320945197,1711720270933,-500.0,0.00050573,120]
[320945198,1711720270942,-529.06877694,0.00050573,120]
[320945199,1711720270951,-522.66805747,0.00050573,120]
[320945200,1711720270961,-500.0,0.00050573,120]
[320945201,1711720270970,-510.93153968,0.00050573,120]
[320945202,1711720270979,-500.0,0.00050582,120]
[320945203,1711720270989,-500.0,0.00050582,120]
[320945204,1711720270998,-500.0,0.00050582,120]
[320945205,1711720271007,-500.0,0.00050582,120]
[320945206,1711720271016,-500.0,0.00050582,7]
[320945207,1711720271026,-500.0,0.00050582,120]
[320945208,1711720271035,-500.0,0.00050582,120]
[320945209,1711720271044,-500.0,0.00050582,120]
[320945210,1711720271053,-500.0,0.00050582,120]
[320945211,1711720271064,-500.0,0.00050582,120]
[320945212,1711720271074,-500.0,0.00050582,120]
[320945213,1711720271083,-500.0,0.00050582,120]
[320945214,1711720271093,-521.8596918,0.00050582,120]
[320945215,1711720271102,-500.0,0.00050582,120]
[320945216,1711720271112,-500.0,0.00050582,120]
[320945217,1711720271121,-500.0,0.00050582,15]
[320945218,1711720271130,-500.0,0.00050582,120]
[320945219,1711720271140,-500.0,0.00050582,120]
[320945220,1711720271150,-500.0,0.00050582,120]
[320945221,1711720271159,-500.0,0.00050582,120]
[320945222,1711720271169,-500.0,0.00050582,120]
[320945223,1711720271179,-500.0,0.00050582,120]
[320945224,1711720271188,-500.0,0.00050582,120]
[320945225,1711720271198,-508.99,0.00050582,120]
[320945226,1711720271295,-500.0,0.00050582,120]
[320945227,1711720271304,-480.82012066,0.00050582,120]
[320945228,1711720271314,-500.0,0.00050582,120]
[320945229,1711720271324,-546.2461615,0.00050582,120]
[320945230,1711720271333,-500.0,0.00050582,120]
[320945231,1711720271343,-500.0,0.00050582,120]
[320945232,1711720271354,-500.0,0.00050582,120]
[320945233,1711720271363,-500.0,0.00050582,120]
[320945234,1711720271374,-541.48404154,0.00050582,120]
[320945235,1711720271383,-500.0,0.00050582,120]
[320945236,1711720271396,-500.0,0.00050582,120]
[320945237,1711720271407,-500.0,0.00050582,120]
[320945238,1711720271417,-500.0,0.00050582,120]
[320945239,1711720271427,-500.0,0.00050582,120]
[320945240,1711720271438,-500.0,0.00050582,120]
[320945241,1711720271447,-500.0,0.00050582,120]
[320945242,1711720271456,-500.0,0.00050582,120]
[320945243,1711720271466,-203.61704557,0.00050582,120]
[320945244,1711720271476,-500.0,0.00050582,120]
[320945245,1711720271486,-500.0,0.00050582,120]
[320945246,1711720271496,-527.48883996,0.00050582,120]
[320945247,1711720271505,-531.49854022,0.00050582,120]
[320945248,1711720271515,-500.0,0.00050582,120]
[320945249,1711720271524,-500.0,0.00050582,120]
[320945250,1711720271535,-500.0,0.00050582,120]